bitfinex-derivatives/quotes_SOLF0:USTF0_20250320
["timestamp","ask_amount","ask_price","bid_price","bid_amount"]
[1742484133432,124.93572407,129.4,129.34,39.4]
[1742484133638,59.97428271,129.39,129.37,40.35995234]
[1742484133835,59.97428271,129.39,129.38,31.64]
[1742484134133,124.93572407,129.4,129.38,31.64]
[1742484134336,37.9644,129.47,129.38,31.64]
[1742484134532,37.9644,129.47,129.42,7.7293]
[1742484134732,37.9644,129.47,129.38,31.68957068]
[1742484134931,0.0520536,129.44,129.38,31.64]
[1742484135233,0.0520536,129.44,129.41,0.0585164]
[1742484135433,240.87232763,129.5,129.41,286.8985164]
[1742484135736,31.6,129.52,129.42,40.35995234]
[1742484136035,31.6,129.52,129.42,42.34625234]
[1742484136537,31.6,129.52,129.44,40.35995234]
[1742484136736,0.04987229,129.48,129.46,0.05346393]
[1742484138132,0.04987229,129.48,129.46,31.63346393]
[1742484138337,37.9946,129.53,129.47,7.7263]
[1742484138836,6.4146,129.53,129.48,7.726]
[1742484139027,365.0,129.54,129.49,31.58]
[1742484139228,31.58,129.55,129.49,31.58]
[1742484139532,0.05361811,129.53,129.5,0.05934573]
[1742484142629,0.05361811,129.53,129.51,7.7243]
[1742484143234,0.05361811,129.53,129.52,7.7237]
[1742484143429,0.05361811,129.53,129.52,39.2037]
[1742484143635,0.05361811,129.53,129.52,31.48]
[1742484143834,0.05361811,129.53,129.5,31.59934573]
[1742484144040,0.05361811,129.53,129.5,0.05934573]
[1742484144239,7.77701811,129.53,129.5,0.05934573]
[1742484144439,0.05361811,129.53,129.5,0.05934573]
[1742484144838,7.77681811,129.53,129.5,0.05934573]
[1742484145333,7.7238,129.52,129.5,0.05934573]
[1742484145532,0.05361811,129.53,129.5,0.05934573]
[1742484145839,40.41357045,129.53,129.47,255.08]
[1742484146032,7.7249,129.5,129.47,255.08]
[1742484146339,40.35995234,129.53,129.47,255.08]
[1742484146538,7.7261,129.48,129.44,31.5]
[1742484146735,31.5,129.5,129.44,7.7279]
[1742484147040,7.77623936,129.47,129.45,0.05671295]
[1742484147236,0.04913936,129.47,129.45,0.05671295]
[1742484148735,0.04913936,129.47,129.46,7.7273]
[1742484148946,2.0029,129.52,129.46,31.54]
[1742484149341,9.7271,129.52,129.48,7.7256]
[1742484149542,2.0029,129.52,129.48,7.7256]
[1742484150050,7.7247,129.51,129.47,7.7264]
[1742484150349,7.77899732,129.51,129.49,0.05714097]
[1742484150646,0.05429732,129.51,129.49,0.05714097]
[1742484151045,33.6071,129.58,129.49,71.89709331]
[1742484151243,35.5715,129.58,129.49,56.2605183]
[1742484151447,35.5715,129.58,129.49,56.20337733]
[1742484151743,24.72337733,129.56,129.48,254.94]
[1742484151942,24.72337733,129.52,129.39,17.5265]
[1742484152140,33.4644,129.51,129.45,7.7276]
[1742484152340,37.7336,129.51,129.45,7.7276]
[1742484152540,7.7264,129.48,129.44,7.78507951]
[1742484152743,31.48,129.47,129.44,7.7283]
[1742484153041,31.48,129.47,129.45,0.05017387]
[1742484153947,31.48,129.47,129.45,7.77797387]
[1742484154249,31.48,129.47,129.45,0.05017387]
[1742484154638,31.48,129.47,129.4,31.48]
[1742484155244,6.2536,129.51,129.4,31.48]
[1742484155444,31.4,129.5,129.4,31.48]
[1742484155644,7.7274,129.46,129.42,7.7294]
[1742484155851,0.05297467,129.46,129.44,0.04901056]
[1742484156450,0.05297467,129.46,129.39,254.94]
[1742484156748,0.05297467,129.46,129.39,286.32]
[1742484157145,7.78057467,129.46,129.42,7.7294]
[1742484157352,0.05297467,129.46,129.39,254.94]
[1742484157552,0.05297467,129.46,129.39,286.32]
[1742484157746,7.7281,129.45,129.41,7.77919077]
[1742484157948,0.05297467,129.46,129.41,0.04949077]
[1742484158247,0.05297467,129.46,129.45,7.7279]
[1742484159349,0.05297467,129.46,129.44,0.05803064]
[1742484159745,0.05297467,129.46,129.45,7.7279]
[1742484159947,0.05297467,129.46,129.44,0.05803064]
[1742484160347,0.05297467,129.46,129.45,7.7279]
[1742484161550,0.05297467,129.46,129.45,39.0679]
[1742484161751,7.467e-05,129.46,129.45,39.0679]
[1742484163153,7.467e-05,129.46,129.45,7.7279]
[1742484168056,7.467e-05,129.46,129.44,7.78643064]
[1742484168251,7.467e-05,129.46,129.44,0.05803064]
[1742484169055,7.467e-05,129.46,129.45,7.7279]
[1742484173161,24.72337733,129.56,129.51,7.7241]
[1742484173365,31.32,129.55,129.48,31.32]
[1742484173753,7.7237,129.52,129.48,31.32]
[1742484173954,31.32,129.55,129.48,31.32]
[1742484174158,31.32,129.55,129.46,31.32]
[1742484174360,7.78229008,129.53,129.5,0.05848393]
[1742484174564,0.05889008,129.53,129.5,0.05848393]
[1742484175367,7.7243,129.51,129.5,0.05848393]
[1742484175553,31.32,129.52,129.45,254.92]
[1742484175753,2.0342,129.51,129.45,254.92]
[1742484175953,2.0342,129.51,129.47,7.7262]
[1742484176368,7.7252,129.5,129.48,7.726]
[1742484176560,2.0342,129.51,129.48,7.726]
[1742484176760,0.05610499,129.5,129.48,0.0491815]
[1742484177065,0.05610499,129.5,129.49,7.7255]
[1742484177661,0.05610499,129.5,129.48,7.7749815]
[1742484177866,0.05610499,129.5,129.48,0.0491815]
[1742484178965,0.05610499,129.5,129.49,7.7255]
[1742484180667,31.32,129.55,129.53,7.7227]
[1742484181063,365.0,129.61,129.52,31.32]
[1742484181255,31.32,129.6,129.52,31.32]
[1742484181663,7.7204,129.58,129.52,31.32]
[1742484181864,0.05210798,129.57,129.55,0.0535134]
[1742484182166,0.05210798,129.57,129.55,31.3735134]
[1742484182353,365.0,129.61,129.55,31.3735134]
[1742484182557,31.32,129.62,129.55,31.3735134]
[1742484183267,31.32,129.62,129.58,7.7198]
[1742484183566,0.04892804,129.61,129.55,31.32]
[1742484183755,0.04892804,129.61,129.59,0.05301204]
[1742484183964,0.04892804,129.61,129.6,7.7189]
[1742484184158,0.04892804,129.61,129.59,0.05301204]
[1742484186266,31.36892804,129.61,129.59,0.05301204]
[1742484186765,0.04892804,129.61,129.59,0.05301204]
[1742484187269,0.04892804,129.61,129.6,7.7189]
[1742484187471,644.62337733,129.7,129.59,0.05301204]
[1742484187472,31.32,129.66,129.59,0.05301204]
[1742484187677,7.7173,129.63,129.59,7.77211204]
[1742484187974,31.32,129.66,129.57,286.18]
[1742484188175,24.72337733,129.64,129.54,24.72337733]
[1742484188472,0.05142773,129.6,129.58,0.05098137]
[1742484188673,7.7207,129.57,129.54,7.7221]
[1742484188868,31.34,129.58,129.52,288.3072]
[1742484189070,31.34,129.58,129.52,256.9672]
[1742484189775,0.05560648,129.56,129.55,7.7215]
[1742484190270,0.05560648,129.56,129.54,0.05464854]
[1742484191073,0.05560648,129.56,129.55,7.7219]
[1742484192173,0.05560648,129.56,129.54,7.77704854]
[1742484192574,39.0219,129.55,129.54,0.05464854]
[1742484192776,39.0219,129.55,129.52,7.7233]
[1742484193282,39.0219,129.55,129.51,7.724]
[1742484193283,31.3,129.55,129.51,7.724]
[1742484193974,7.78113945,129.54,129.52,0.05535841]
[1742484194473,24.78171678,129.54,129.44,2.0162]
[1742484194673,1.9932,129.53,129.44,2.0162]
[1742484194872,31.84,129.52,129.44,2.0162]
[1742484195582,0.05609298,129.49,129.47,0.0547709]
[1742484196179,396.82,129.54,129.47,24.77814823]
[1742484196474,31.82,129.54,129.47,24.77814823]
[1742484196782,39.5215,129.56,129.52,7.7234]
[1742484196977,31.8,129.56,129.49,31.8]
[1742484197379,0.0590715,129.54,129.51,0.05232596]
[1742484197581,0.0590715,129.54,129.51,7.77622596]
[1742484197772,0.0590715,129.54,129.51,0.05232596]
[1742484198274,0.0590715,129.54,129.53,7.7231]
[1742484199676,254.82,129.63,129.53,7.7231]
[1742484199677,2.1863,129.61,129.53,7.72]
[1742484199882,2.1863,129.61,129.55,24.72337733]
[1742484200183,2.1863,129.61,129.59,7.7195]
[1742484200681,2.1863,129.61,129.6,7.7189]
[1742484200882,0.05868438,129.61,129.6,7.7189]
[1742484202380,0.05868438,129.61,129.59,39.62974642]
[1742484202573,0.05868438,129.61,129.59,0.05034642]
[1742484203985,7.77708438,129.61,129.59,0.05034642]
[1742484204284,0.05868438,129.61,129.59,0.05034642]
[1742484204783,0.05868438,129.61,129.59,7.76964642]
[1742484204979,0.05868438,129.61,129.53,24.72337733]
[1742484205284,31.82,129.6,129.52,31.82]
[1742484205478,2.059,129.59,129.52,31.82]
[1742484205679,7.7207,129.57,129.53,7.7228]
[1742484206076,2.059,129.59,129.53,7.7228]
[1742484206581,0.0584301,129.57,129.55,0.05150536]
[1742484206885,31.8384301,129.57,129.55,0.05150536]
[1742484207786,31.8384301,129.57,129.56,7.7213]
[1742484208080,31.8384301,129.57,129.55,0.05150536]
[1742484208280,0.0584301,129.57,129.55,0.05150536]
[1742484208474,0.0584301,129.57,129.56,7.7213]
[1742484208678,0.0584301,129.57,129.55,0.05150536]
[1742484209482,0.0584301,129.57,129.56,7.7213]
[1742484210087,396.72,129.64,129.56,24.72337733]
[1742484210381,4.0631,129.67,129.58,24.72337733]
[1742484210587,31.74,129.66,129.63,7.7168]
[1742484210882,4.0631,129.67,129.6,31.74]
[1742484211076,4.0631,129.67,129.6,56.46337733]
[1742484211283,4.0631,129.67,129.62,0.05320465]
[1742484211284,0.05734599,129.65,129.62,0.05320465]
[1742484212283,0.05734599,129.65,129.63,7.7168]
[1742484212587,0.05734599,129.65,129.62,0.05320465]
[1742484213289,0.05734599,129.65,129.64,7.7165]
[1742484213787,0.05734599,129.65,129.62,0.05320465]
[1742484214488,0.05734599,129.65,129.64,7.7165]
[1742484214790,365.0,129.68,129.63,31.62]
[1742484215187,2.0345,129.7,129.63,31.62]
[1742484215389,2.0114,129.71,129.64,24.72337733]
[1742484215578,2.0114,129.71,129.67,7.7144]
[1742484215783,0.05277228,129.69,129.67,7.7144]
[1742484215983,0.05277228,129.69,129.66,0.05334783]
[1742484216591,0.05277228,129.69,129.66,31.59334783]
[1742484217390,0.05277228,129.69,129.67,7.7148]
[1742484217581,0.05277228,129.69,129.66,31.59334783]
[1742484217984,0.05277228,129.69,129.68,7.7142]
[1742484218582,0.05277228,129.69,129.67,7.7145]
[1742484218793,0.05277228,129.69,129.66,31.59334783]
[1742484219394,0.05277228,129.69,129.67,7.7148]
[1742484219691,0.05277228,129.69,129.66,31.59334783]
[1742484219893,0.05277228,129.69,129.68,7.7142]
[1742484220391,4.2381,129.74,129.66,56.31672516]
[1742484220592,7.7127,129.71,129.66,56.26337733]
[1742484220894,7.7127,129.71,129.68,7.7139]
[1742484221193,7.713,129.7,129.66,31.54]
[1742484221393,2.0714,129.73,129.66,39.2548]
[1742484221593,0.05224029,129.69,129.67,0.05627076]
[1742484222188,0.05224029,129.69,129.62,31.44]
[1742484222393,0.05224029,129.69,129.65,7.7154]
[1742484222589,0.05224029,129.69,129.62,56.16337733]
[1742484223396,31.46,129.68,129.64,0.05091414]
[1742484224893,33.5799,129.68,129.64,0.05091414]
[1742484225790,33.5799,129.68,129.64,7.76721414]
[1742484225990,33.5799,129.68,129.64,0.05091414]
[1742484226190,33.5799,129.68,129.66,7.7153]
[1742484226789,33.5799,129.68,129.67,7.7148]
[1742484227194,31.51224029,129.69,129.67,7.7148]
[1742484227595,31.51224029,129.69,129.67,0.05554219]
[1742484227995,31.51224029,129.69,129.67,7.77004219]
[1742484228200,31.51224029,129.69,129.67,0.05554219]
[1742484228587,31.51224029,129.69,129.68,7.7142]
[1742484228793,0.05224029,129.69,129.68,7.7142]
[1742484229391,31.42,129.73,129.72,7.7118]
[1742484229593,31.42,129.73,129.66,33.6026]
[1742484229791,2.1626,129.74,129.66,33.6026]
[1742484229997,2.1626,129.74,129.68,7.7139]
[1742484230196,2.1626,129.74,129.66,33.6026]
[1742484230499,2.1626,129.74,129.69,7.7135]
[1742484230795,0.05154884,129.71,129.69,0.05467528]
[1742484231195,0.05154884,129.71,129.7,7.713]
[1742484231794,39.0497,129.76,129.73,7.711]
[1742484231994,396.34,129.77,129.69,31.34]
[1742484232194,365.0,129.77,129.73,7.7107]
[1742484232395,396.32,129.77,129.69,31.34]
[1742484232597,2.0464,129.76,129.67,285.9]
[1742484232794,4.0319,129.75,129.67,285.9]
[1742484232994,0.05828833,129.73,129.7,0.05889374]
[1742484233399,0.05828833,129.73,129.7,7.77159374]
[1742484233600,7.76978833,129.73,129.7,7.77159374]
[1742484234808,0.05828833,129.73,129.7,0.05889374]
[1742484236412,7.76978833,129.73,129.7,7.77149374]
[1742484236606,0.05828833,129.73,129.7,7.77149374]
[1742484237009,7.76978833,129.73,129.7,7.77149374]
[1742484237204,7.76978833,129.73,129.71,7.7123]
[1742484237415,0.05828833,129.73,129.7,0.05889374]
[1742484237610,8.833e-05,129.73,129.7,31.33889374]
[1742484237807,2.1546,129.81,129.71,24.72337733]
[1742484238013,31.28,129.8,129.73,24.72337733]
[1742484238208,31.28,129.8,129.73,56.00337733]
[1742484238410,7.7079,129.79,129.73,56.00337733]
[1742484238609,31.28,129.8,129.73,56.00337733]
[1742484238917,7.71,129.75,129.69,24.72337733]
[1742484239217,31.28,129.76,129.71,0.05919944]
[1742484239515,0.05716251,129.75,129.69,24.72337733]
[1742484239710,0.05716251,129.75,129.72,0.05245991]
[1742484240016,7.76746251,129.75,129.72,0.05245991]
[1742484240213,0.05716251,129.75,129.72,0.05245991]
[1742484240408,0.05716251,129.75,129.72,7.76395991]
[1742484240610,7.76746251,129.75,129.72,7.76395991]
[1742484240811,0.05716251,129.75,129.73,7.7109]
[1742484241013,7.76716251,129.75,129.72,0.05245991]
[1742484241214,0.05716251,129.75,129.72,0.05245991]
[1742484242019,0.05716251,129.75,129.73,7.7108]
[1742484242218,7.7107,129.74,129.72,0.05245991]
[1742484242713,38.9712,129.73,129.72,0.05245991]
[1742484243519,31.26,129.73,129.72,0.05245991]
[1742484244117,38.9712,129.73,129.72,0.05245991]
[1742484245222,31.26,129.73,129.72,0.05245991]
[1742484246016,31.26,129.73,129.72,7.76425991]
[1742484246321,31.26,129.73,129.72,0.05245991]
[1742484246519,1.9895,129.74,129.72,0.05245991]
[1742484246725,31.26,129.73,129.72,0.05245991]
[1742484247018,31.31716251,129.75,129.72,0.05245991]
[1742484247218,31.31716251,129.75,129.74,7.7106]
[1742484247516,0.05716251,129.75,129.74,7.7106]
[1742484247721,0.05716251,129.75,129.73,7.7108]
[1742484247918,7.76756251,129.75,129.72,0.05245991]
[1742484248223,0.05716251,129.75,129.72,0.05245991]
[1742484248718,0.05716251,129.75,129.72,7.76395991]
[1742484249114,0.05716251,129.75,129.72,0.05245991]
[1742484250222,7.7109,129.74,129.72,0.05245991]
[1742484250523,31.26,129.73,129.72,0.05245991]
[1742484250720,31.26,129.73,129.67,254.58]
[1742484250921,31.26,129.73,129.67,7.7144]
[1742484251824,0.05485329,129.71,129.69,0.04911491]
[1742484252012,38.9734,129.7,129.62,330.44062488]
[1742484252218,38.9734,129.7,129.69,0.05716653]
[1742484252414,0.05151668,129.67,129.62,330.44062488]
[1742484252619,7.7136,129.69,129.62,330.44062488]
[1742484252814,0.05212223,129.66,129.65,7.716]
[1742484253014,31.26,129.7,129.65,7.716]
[1742484253223,7.7667778,129.67,129.65,7.716]
[1742484253428,39.0267778,129.67,129.64,7.7704776]
[1742484253720,7.7154,129.66,129.64,7.7704776]
[1742484253925,31.3118778,129.67,129.65,7.716]
[1742484254726,31.3118778,129.67,129.66,7.7154]
[1742484254930,31.26,129.71,129.65,31.26]
[1742484255129,31.26,129.73,129.66,24.72337733]
[1742484255328,31.26,129.73,129.71,7.7121]
[1742484255527,31.26,129.73,129.66,24.72337733]
[1742484255829,31.26,129.73,129.65,33.3385]
[1742484256130,31.26,129.73,129.68,0.05518986]
[1742484256131,0.05899178,129.7,129.68,0.05518986]
[1742484256327,0.05899178,129.7,129.69,7.7132]
[1742484256825,0.05899178,129.7,129.68,7.76898986]
[1742484257027,0.05899178,129.7,129.68,0.05518986]
[1742484257529,0.05899178,129.7,129.69,7.7136]
[1742484259232,365.0,129.75,129.68,56.03856719]
[1742484259427,31.26,129.76,129.7,24.72337733]
[1742484259636,31.26,129.77,129.7,55.98337733]
[1742484259934,31.26,129.78,129.7,55.98337733]
[1742484260134,2.1909,129.79,129.7,55.98337733]
[1742484260331,0.05365053,129.76,129.73,0.05286602]
[1742484261136,0.05365053,129.76,129.75,7.71]
[1742484261537,31.31365053,129.76,129.73,0.05286602]
[1742484262335,7.7103,129.75,129.73,0.05286602]
[1742484262934,31.31365053,129.76,129.73,0.05286602]
[1742484264235,7.7106,129.74,129.73,0.05286602]
[1742484264434,31.31365053,129.76,129.73,0.05286602]
[1742484264638,39.02335053,129.76,129.73,7.76366602]
[1742484264834,31.31365053,129.76,129.73,0.05286602]
[1742484265335,0.05365053,129.76,129.75,7.71]
[1742484268952,2.1541,129.83,129.75,7.7]
[1742484269241,33.4141,129.83,129.75,1.6466]
[1742484269442,33.4141,129.83,129.76,24.72337733]
[1742484269643,33.4141,129.83,129.76,31.26]
[1742484270044,0.05067844,129.81,129.78,0.05887162]
[1742484270432,0.05067844,129.81,129.8,7.707]
[1742484271139,0.05067844,129.81,129.79,7.7072]
[1742484271540,0.05067844,129.81,129.78,0.05887162]
[1742484272145,7.7071,129.8,129.78,0.05887162]
[1742484272547,31.26,129.79,129.78,0.05887162]
[1742484272844,31.26,129.79,129.78,7.76677162]
[1742484273346,31.26,129.79,129.78,0.05887162]
[1742484275541,31.26,129.79,129.78,7.76707162]
[1742484275937,31.26,129.79,129.78,0.05887162]
[1742484276647,38.9676,129.79,129.73,24.63344581]
[1742484276945,31.26,129.79,129.73,24.63344581]
[1742484277245,7.7092,129.77,129.72,254.46]
[1742484277445,31.26,129.79,129.72,254.46]
[1742484277842,0.05048111,129.77,129.74,0.05717208]
[1742484278643,0.05048111,129.77,129.75,7.7097]
[1742484279547,0.05048111,129.77,129.76,7.7094]
[1742484279949,0.05048111,129.77,129.74,0.05717208]
[1742484280149,7.75938111,129.77,129.75,7.7097]
[1742484281149,0.05048111,129.77,129.75,7.7097]
[1742484281949,0.05048111,129.77,129.76,7.7094]
[1742484282154,7.75938111,129.77,129.74,0.05717208]
[1742484282448,31.24,129.76,129.74,0.05717208]
[1742484282845,7.71,129.75,129.74,0.05717208]
[1742484283043,31.24,129.76,129.74,0.05717208]
[1742484283449,7.71,129.75,129.74,0.05717208]
[1742484283847,31.24,129.76,129.74,0.05717208]
[1742484284047,0.05048111,129.77,129.75,7.7097]
[1742484284247,31.24,129.76,129.75,7.7097]
[1742484284449,31.29048111,129.77,129.74,0.05717208]
[1742484284649,31.24,129.76,129.75,7.7097]
[1742484284851,31.29048111,129.77,129.74,0.05717208]
[1742484285146,0.05048111,129.77,129.76,7.7094]
[1742484287444,0.05048111,129.77,129.74,0.05717208]
[1742484287639,31.29048111,129.77,129.74,0.05717208]
[1742484288246,2.0811,129.76,129.68,287.6712]
[1742484288445,2.0811,129.76,129.68,256.4312]
[1742484288847,2.0811,129.76,129.7,7.7127]
[1742484289041,2.0811,129.76,129.68,256.4312]
[1742484289449,0.059156,129.73,129.71,0.05528196]
[1742484290652,0.059156,129.73,129.71,7.76758196]
[1742484291050,0.059156,129.73,129.71,0.05528196]
[1742484291650,7.770456,129.73,129.71,0.05528196]
[1742484292056,0.059156,129.73,129.71,0.05528196]
[1742484292258,7.7118,129.72,129.71,0.05528196]
[1742484293053,7.770656,129.73,129.71,0.05528196]
[1742484293249,0.059156,129.73,129.71,0.05528196]
[1742484293853,7.770456,129.73,129.71,7.76768196]
[1742484294155,7.770456,129.73,129.71,0.05528196]
[1742484294663,0.059156,129.73,129.71,0.05528196]
[1742484295453,0.059156,129.73,129.71,7.76738196]
[1742484296357,0.059156,129.73,129.71,0.05528196]
[1742484296756,7.7118,129.72,129.71,0.05528196]
[1742484296961,0.059156,129.73,129.71,3.59318196]
[1742484297269,7.713,129.7,129.66,15.41472449]
[1742484297460,31.24,129.7,129.64,15.41472449]
[1742484297659,31.24,129.7,129.68,7.7139]
[1742484297860,31.24,129.7,129.66,15.41472449]
[1742484298059,31.24,129.7,129.69,7.7136]
[1742484298461,31.24,129.7,129.68,0.05878372]
[1742484298968,38.9533,129.7,129.68,0.05878372]
[1742484299467,31.24,129.7,129.68,0.05878372]
[1742484300568,31.24,129.7,129.68,7.77248372]
[1742484300863,31.24,129.7,129.68,0.05878372]
[1742484301069,7.7158,129.66,129.63,7.7168]
[1742484301269,31.24,129.67,129.6,31.24]
[1742484301665,38.9551,129.67,129.64,7.7161]
[1742484301862,31.24,129.67,129.64,7.7161]
[1742484302067,7.716,129.65,129.6,31.24]
[1742484302266,31.29532947,129.67,129.64,0.05326056]
[1742484302466,31.24,129.67,129.6,31.24]
[1742484302773,31.29114705,129.67,129.64,0.05910043]
[1742484303673,389.66971318,129.66,129.54,35.3334694]
[1742484303863,365.0,129.65,129.54,35.3334694]
[1742484304061,31.24,129.64,129.54,35.3334694]
[1742484304269,33.2252,129.64,129.54,66.5734694]
[1742484304472,33.2252,129.64,129.54,68.6476694]
[1742484304673,33.2252,129.64,129.62,7.7177]
[1742484304873,33.2252,129.64,129.58,0.0542621]
[1742484305071,33.28028409,129.64,129.56,24.66971318]
[1742484305273,7.7181,129.62,129.6,0.05580376]
[1742484305573,31.30968651,129.61,129.6,0.05580376]
[1742484305974,31.30968651,129.61,129.6,7.77470376]
[1742484308975,31.30968651,129.61,129.54,287.8542]
[1742484309178,31.30968651,129.61,129.54,256.6142]
[1742484309376,31.30968651,129.61,129.59,7.7192]
[1742484309771,31.30968651,129.61,129.57,7.7203]
[1742484309978,31.30968651,129.61,129.54,256.6142]
[1742484310281,31.30968651,129.61,129.6,7.7189]
[1742484311074,0.04968651,129.61,129.6,7.7189]
[1742484311380,31.30968651,129.61,129.6,7.7189]
[1742484312176,365.0,129.65,129.64,7.7165]
[1742484312373,31.26,129.65,129.59,24.66971318]
[1742484312575,7.7166,129.64,129.57,24.66971318]
[1742484312879,31.26,129.65,129.56,31.26]
[1742484313177,9.8722,129.64,129.61,7.718]
[1742484313380,0.05674821,129.62,129.61,7.718]
[1742484313576,31.31674821,129.62,129.61,7.718]
[1742484313973,0.05674821,129.62,129.61,7.718]
[1742484314483,0.05674821,129.62,129.59,0.05549793]
[1742484314877,0.05674821,129.62,129.61,7.7183]
[1742484323582,31.31674821,129.62,129.61,7.7183]
[1742484323778,31.31674821,129.62,129.59,0.05549793]
[1742484324482,31.31674821,129.62,129.6,7.7189]
[1742484325186,39.03454821,129.62,129.6,7.7189]
[1742484326388,31.31674821,129.62,129.6,7.7189]
[1742484327291,31.31674821,129.62,129.59,0.05549793]
[1742484328887,39.03454821,129.62,129.59,0.05549793]
[1742484329093,31.31674821,129.62,129.59,0.05549793]
[1742484329795,7.7186,129.61,129.59,7.77469793]
[1742484329997,31.31674821,129.62,129.59,0.05549793]
[1742484330188,7.7187,129.61,129.59,0.05549793]
[1742484330887,39.03464821,129.62,129.59,7.77469793]
[1742484331392,31.31674821,129.62,129.61,7.7183]
[1742484332293,31.31674821,129.62,129.59,0.05549793]
[1742484332792,7.7186,129.61,129.59,7.77479793]
[1742484332994,0.05674821,129.62,129.59,0.05549793]
[1742484333193,31.31674821,129.62,129.59,0.05549793]
[1742484333597,31.31674821,129.62,129.6,7.7185]
[1742484333993,39.03444821,129.62,129.6,7.7185]
[1742484334191,31.31674821,129.62,129.59,7.77479793]
[1742484334393,31.31674821,129.62,129.59,0.05549793]
[1742484334989,31.31674821,129.62,129.59,7.77469793]
[1742484335189,31.31674821,129.62,129.59,0.05549793]
[1742484335993,39.03474821,129.62,129.6,7.7188]
[1742484336394,31.31674821,129.62,129.61,7.7183]
[1742484336700,0.05674821,129.62,129.61,7.7183]
[1742484338400,2.083,129.68,129.67,7.7148]
[1742484338701,31.24,129.68,129.63,15.42981621]
[1742484339491,365.0,129.71,129.69,7.7133]
[1742484339697,31.24,129.7,129.69,7.7133]
[1742484339891,365.04884813,129.71,129.65,15.42981621]
[1742484340097,0.04884813,129.71,129.7,7.713]
[1742484340701,0.04884813,129.71,129.69,7.7133]
[1742484341502,7.7136,129.69,129.68,0.04902767]
[1742484341705,15.42981621,129.69,129.61,15.42981621]
[1742484342599,7.7151,129.67,129.61,15.42981621]
[1742484342795,31.29061675,129.66,129.64,0.0506353]
[1742484343208,31.29061675,129.66,129.64,7.7670353]
[1742484343905,31.29061675,129.66,129.64,0.0506353]
[1742484344302,7.716,129.65,129.64,0.0506353]
[1742484345307,39.00621675,129.66,129.64,0.0506353]
[1742484345505,31.29061675,129.66,129.64,0.0506353]
[1742484347202,31.29061675,129.66,129.59,15.42981621]
[1742484347402,31.29061675,129.66,129.57,46.66981621]
[1742484347601,7.7174,129.63,129.6,7.7184]
[1742484347796,31.24,129.66,129.57,46.66981621]
[1742484348205,7.7168,129.64,129.59,15.42981621]
[1742484348406,0.05785092,129.63,129.6,0.05564321]
[1742484349412,0.05785092,129.63,129.61,7.718]
[1742484349910,31.29785092,129.63,129.6,0.05564321]
[1742484350110,39.01545092,129.63,129.6,7.77434321]
[1742484350509,7.7178,129.62,129.6,7.77434321]
[1742484350708,31.29785092,129.63,129.6,0.05564321]
[1742484351109,7.7183,129.62,129.6,0.05564321]
[1742484352121,39.01525092,129.63,129.6,7.77444321]
[1742484352515,31.29785092,129.63,129.61,7.718]
[1742484353015,31.29785092,129.63,129.62,7.7177]
[1742484353318,0.05785092,129.63,129.62,7.7177]
[1742484353718,0.05785092,129.63,129.61,7.7181]
[1742484353914,0.05785092,129.63,129.6,0.05564321]
[1742484354308,0.05785092,129.63,129.62,7.7177]
[1742484354813,31.24,129.67,129.66,7.7154]
[1742484355118,2.0137,129.68,129.63,15.42981621]
[1742484355314,9.728,129.68,129.66,7.7152]
[1742484355514,2.0137,129.68,129.63,15.42981621]
[1742484356016,7.77095538,129.67,129.64,0.05798637]
[1742484356308,0.05595538,129.67,129.64,0.05798637]
[1742484356715,0.05595538,129.67,129.65,7.7157]
[1742484357414,0.05595538,129.67,129.65,7.716]
[1742484357615,0.05595538,129.67,129.64,0.05798637]
[1742484358919,0.05595538,129.67,129.65,7.7156]
[1742484359112,0.05595538,129.67,129.64,0.05798637]
[1742484360219,7.7157,129.66,129.64,0.05798637]
[1742484360608,38.9357,129.66,129.64,0.05798637]
[1742484360906,31.22,129.66,129.64,0.05798637]
[1742484361110,0.05595538,129.67,129.64,0.05798637]
[1742484361307,0.05595538,129.67,129.66,7.7154]
[1742484361611,365.0,129.71,129.65,15.42981621]
[1742484361810,33.4024,129.74,129.69,15.42981621]